{"text_format":"2","workbook":"xlsx","n_sheets":3,"sheets":["Лист1","Лист2","Лист3"],"not_rendered":{"charts":0,"images":0,"macros":0,"external_links":0,"defined_names":0,"comments":0,"pivot_tables":0},"unopened":[],"bounds":{"document_bytes":16777216,"sheet_cells":100000,"run_cost":"one","rows_first":2000,"rows_last":500,"rows_between":2000,"halvings":0,"cell_chars":16384,"cell_head_chars":4096},"cells_cut":0,"cells_raw":0,"read":"whole","date_system":"1900"}

{"sheet":"Лист1","index":0,"n_rows":13,"n_cols":31,"rows_kept":13,"cut":false,"hidden":false,"merged":[[0,0,0,19],[1,0,1,19],[2,0,2,19],[3,24,4,25],[3,27,4,28],[3,30,4,30],[3,17,4,18],[3,22,4,23],[3,3,4,4],[3,7,4,8],[3,5,4,6],[3,20,4,20],[3,21,4,21],[3,15,4,16],[3,14,4,14],[3,10,4,11],[3,12,4,13]]}
["Отчет о результатах мониторинга качества финансового менеджмента,"]
["осуществляемого главными администраторами средств районного бюджета"]
["Шарангского муниципального  района за 1 квартал 2017года"]
["№","Наименование главного администратора средств районного бюджета","КВСР","1.7.1  Качество планирования расходов: сумма положительных внесенных изменений в бюджетную роспись в связи с уточнением ассигнований по решению Земского собрания Шарангского района о районном бюджете",null,"1.7.2  Качество планирования расходов: сумма отрицательных внесенных изменений в бюджетную роспись в связи с уточнением ассигнований по решению Земского собрания Шарангского района о районном бюджете",null,"1.8.  Качество планирования расходов: сумма внесенных положительных изменений в бюджетную роспись в связи с передвижками между кодами бюджетной классификации",null,"1. Финансовое планирование","2.5. Качество прогнозирования кассовых расходов, кроме муниципальных программ",null,"2.6. Качество прогнозирования кассовых расходов по муниципальным программам",null,"2.7. Качество исполнения расходов: наличие просрочен - ной кредиторс-кой задолжен-ности","2.8. Уровень подготовки платежных документов",null,"2.9. Уровень  использования субсидий бюджетными  и автономными учреждениями, предоставленных на  выполнение муниципальных заданий",null,"2.Исполнение бюджета в части расходов","Наименование главного администратора средств районного бюджета","КВСР","3.2.  Полнота зачисления   платежей в районный бюджет по главному администра -тору доходов районного бюджета, объем невыясненных поступлений",null,"3.3. Отклонение кассового исполнения по доходам от прогноза по главному администратору доходов районного бюджета",null,"3.Исполнение бюджета в части доходов","4.5.Коэффициент сложности бюджетных ассигнований",null,"4. Учет и отчетность","ВСЕГО"]
["п\\п"]
[null,null,null,"%","баллы","%","баллы","%","баллы","баллы","%","баллы","%","баллы","баллы","%","баллы","%","баллы","баллы",null,null,"%","баллы","%","баллы","баллы","%","баллы","баллы","Количество баллов"]
[null,"1 группа",{"$nulls":18},"1 группа"]
[1,"Районный отдел образования","074",99.8,3,100,1,100,2,{"$f":"SUM(E8+G8+I8)","v":6},0,3,92.6,3,10,97.2,2,85.3,2,{"$f":"SUM(L8+N8+O8+Q8+S8)","v":20},"Районный отдел образования","074",0,5,0,0,{"$f":"SUM(X8+Z8)","v":5},955.7,2,{"$f":"SUM(AC8)","v":2},{"$f":"SUM(J8+T8+AA8+AD8)","v":33}]
[2,"Отдел культуры","057",99.7,2,100,1,100,2,{"$f":"SUM(E9+G9+I9)","v":5},100,2,90.4,2,10,99.3,3,85,1,{"$f":"SUM(L9+N9+O9+Q9+S9)","v":18},"Отдел культуры","057",0,5,0,0,{"$f":"SUM(X9+Z9)","v":5},993.8,3,{"$f":"SUM(AC9)","v":3},{"$f":"SUM(J9+T9+AA9+AD9)","v":31}]
[3,"Администрация",487,96.3,1,100,1,99.9,1,{"$f":"SUM(E10+G10+I10)","v":3},82.5,1,64.900000000000006,1,10,96.6,1,98.9,3,{"$f":"SUM(L10+N10+O10+Q10+S10)","v":16},"Администрация",487,0,5,-111.3,0,{"$f":"SUM(X10+Z10)","v":5},53.4,1,{"$f":"SUM(AC10)","v":1},{"$f":"SUM(J10+T10+AA10+AD10)","v":25}]
[null,"2 группа",{"$nulls":18},"2 группа"]
[2,"Управление сельского хозяйства","082",100,2,100,1,100,1,4,0,0,61.8,1,10,98.3,1,"-",null,12,"Управление сельского хозяйства","082",0,5,0,0,5,84.8,2,2,{"$f":"SUM(J12+T12+AA12+AD12)","v":23}]
[3,"Финансовое управление","001",89.3,1,100,1,100,1,3,0,0,65.7,2,10,100,2,"-",null,14,"Финансовое управление","001",0,5,0,0,5,43.8,1,1,23]

{"sheet":"Лист2","index":1,"n_rows":0,"n_cols":0,"rows_kept":0,"cut":false,"hidden":false,"merged":[]}

{"sheet":"Лист3","index":2,"n_rows":0,"n_cols":0,"rows_kept":0,"cut":false,"hidden":false,"merged":[]}